bitfinex/quotes_SOLUSD_20250922
["timestamp","ask_amount","ask_price","bid_price","bid_amount"]
[1758500592122,19.94315764,235.39,235.29,13.59559401]
[1758500592318,19.28315764,235.39,235.3,4.91989375]
[1758500592526,54.02315764,235.39,235.31,0.67]
[1758500592831,19.28315764,235.39,235.31,0.67]
[1758500593933,19.94315764,235.39,235.3,14.87462813]
[1758500594135,19.28315764,235.39,235.31,0.67]
[1758500594332,19.28315764,235.39,235.33,4.24935197]
[1758500594518,19.28315764,235.39,235.33,14.8727319]
[1758500595642,19.28315764,235.39,235.34,13.59559401]
[1758500595643,34.7,235.38,235.34,13.59559401]
[1758500596925,34.7,235.38,235.35,4.24899086]
[1758500597549,34.7,235.38,235.36,14.26559401]
[1758500598042,34.7,235.38,235.35,4.24899086]
[1758500598246,19.28315764,235.39,235.36,14.26559401]
[1758500598552,19.28315764,235.39,235.37,0.67]
[1758500598753,19.28315764,235.39,235.35,4.24899086]
[1758500598936,19.28315764,235.39,235.34,13.59559401]
[1758500599270,53.94315764,235.39,235.36,13.59559401]
[1758500599634,53.94315764,235.39,235.37,0.67]
[1758500599940,19.28315764,235.39,235.38,0.67]
[1758500600144,34.66,235.48,235.38,0.67]
[1758500600743,0.66,235.52,235.39,13.59559401]
[1758500600949,13.37528769,235.51,235.41,13.59559401]
[1758500601160,0.66,235.55,235.43,13.59559401]
[1758500601341,0.66,235.59,235.45,13.59559401]
[1758500601658,32.11626432,235.58,235.47,13.59559401]
[1758500601835,32.11626432,235.58,235.41,31.2]
[1758500601836,32.09626432,235.57,235.49,13.59559401]
[1758500602032,30.04,235.57,235.49,13.59559401]
[1758500602236,30.04,235.57,235.43,44.79559401]
[1758500602237,2.71717574,235.56,235.43,44.79559401]
[1758500602562,2.71717574,235.56,235.45,13.59559401]
[1758500602563,34.68,235.55,235.45,13.59559401]
[1758500602732,34.68,235.55,235.46,0.67]
[1758500602933,34.68,235.55,235.48,13.59559401]
[1758500603130,34.68,235.55,235.48,14.26559401]
[1758500603335,34.68,235.54,235.48,14.26559401]
[1758500603535,34.68,235.54,235.48,13.59559401]
[1758500603848,2.71837348,235.53,235.39,0.67]
[1758500604046,2.05837348,235.52,235.4,13.59559401]
[1758500604253,2.71837348,235.51,235.4,13.59559401]
[1758500604450,2.05837348,235.5,235.4,13.59559401]
[1758500604636,2.05837348,235.49,235.46,3.23612994]
[1758500604957,2.71837348,235.48,235.47,3.23612994]
[1758500605140,2.75862511,235.53,235.47,3.90612994]
[1758500605340,0.66,235.58,235.48,13.59559401]
[1758500605542,36.74095333,235.57,235.48,14.26559401]
[1758500605857,2.06095333,235.56,235.48,14.26559401]
[1758500606163,2.06095333,235.55,235.48,17.50172395]
[1758500606361,2.06095333,235.54,235.5,13.59559401]
[1758500606557,34.68,235.57,235.51,0.67]
[1758500606859,2.06251437,235.56,235.52,13.59559401]
[1758500607159,0.67,235.64,235.54,13.59559401]
[1758500607341,0.67,235.64,235.63,3.23612994]
[1758500607535,37.41426863,235.64,235.59,3.23612994]
[1758500607756,5.50010285,235.63,235.59,3.23612994]
[1758500607944,2.73426863,235.62,235.59,3.23612994]
[1758500608146,2.06426863,235.61,235.59,3.23612994]
[1758500608361,2.06426863,235.6,235.59,3.23612994]
[1758500609142,2.06426863,235.6,235.59,7.48079227]
[1758500609364,2.06426863,235.6,235.54,13.59559401]
[1758500609564,36.70426863,235.59,235.57,3.23612994]
[1758500609760,36.70426863,235.58,235.57,3.23612994]
[1758500610577,2.06426863,235.58,235.57,3.23612994]
[1758500611559,36.68426863,235.58,235.57,7.48115265]
[1758500613775,36.68426863,235.58,235.54,4.24544943]
[1758500614071,36.68426863,235.58,235.54,7.48157937]
[1758500614072,4.8345362,235.57,235.54,7.48157937]
[1758500614362,2.06426863,235.56,235.54,4.95544943]
[1758500614663,36.62426863,235.55,235.54,4.95544943]
[1758500615165,36.62426863,235.55,235.54,4.24544943]
[1758500615355,36.62957307,235.55,235.54,7.48157937]
[1758500615664,2.06957307,235.55,235.54,7.48157937]
[1758500617349,2.06957307,235.55,235.54,8.19157937]
[1758500617549,2.06957307,235.55,235.54,21.78717338]
[1758500618472,2.12150834,235.69,235.55,13.59559401]
[1758500618473,0.67,235.69,235.55,13.59559401]
[1758500618786,37.25803395,235.68,235.64,3.23612994]
[1758500619076,2.77803395,235.67,235.64,3.23612994]
[1758500619284,34.48,235.66,235.65,4.24358158]
[1758500619485,2.77803395,235.66,235.65,4.24358158]
[1758500619781,34.48,235.66,235.65,4.24358158]
[1758500620284,37.25906364,235.66,235.65,4.24358158]
[1758500620459,34.48,235.66,235.65,4.24358158]
[1758500620654,34.48,235.66,235.64,3.23612994]
[1758500620861,2.7792953,235.65,235.63,4.24377942]
[1758500621170,35.15,235.66,235.63,4.24377942]
[1758500621385,34.48,235.66,235.63,4.24377942]
[1758500621554,34.46,235.65,235.63,4.24377942]
[1758500622084,0.67,235.67,235.63,4.24377942]
[1758500622285,34.46,235.66,235.63,4.24377942]
[1758500622456,0.67,235.67,235.63,4.24377942]
[1758500622664,34.44,235.66,235.63,4.24377942]
[1758500624167,34.44,235.66,235.61,28.45065109]
[1758500624370,132.2,235.71,235.63,13.59559401]
[1758500624567,2.78121198,235.7,235.63,13.59559401]
[1758500624757,34.4,235.69,235.63,13.59559401]
[1758500624958,2.78121198,235.68,235.63,13.59559401]
[1758500625275,34.4,235.69,235.62,13.59559401]
[1758500625480,0.67,235.7,235.62,13.59559401]
[1758500625684,34.4,235.69,235.62,13.59559401]
[1758500625860,35.07,235.69,235.62,13.59559401]
[1758500626178,2.78097878,235.68,235.63,14.8537962]
[1758500626375,2.78097878,235.68,235.64,0.71]
[1758500626553,132.2,235.71,235.64,0.71]
[1758500626749,34.38,235.67,235.64,0.71]
[1758500627370,34.38,235.67,235.65,0.71]
[1758500627592,34.38,235.66,235.65,0.71]
[1758500627769,34.36,235.66,235.65,0.71]
[1758500628093,132.2,235.71,235.65,0.71]
[1758500628264,37.14094487,235.7,235.65,15.56253553]
[1758500628588,132.2,235.71,235.65,15.56253553]
[1758500628781,34.34,235.69,235.65,15.56253553]
[1758500629294,0.67,235.77,235.67,13.59559401]
[1758500629475,34.34,235.76,235.68,0.71]
[1758500629664,2.78024552,235.75,235.69,13.59559401]
[1758500629866,2.78024552,235.75,235.65,14.85253553]
[1758500630180,0.67,235.74,235.67,14.85127508]
[1758500630381,2.78024552,235.75,235.67,15.56127508]
[1758500630776,34.32,235.74,235.67,15.56127508]
[1758500631085,2.78024552,235.73,235.67,15.56127508]
[1758500631389,2.78024552,235.73,235.68,0.71]
[1758500631563,35.09,235.78,235.69,0.71]
[1758500631564,34.32,235.72,235.69,0.71]
[1758500631885,34.32,235.71,235.69,0.71]
[1758500632276,34.3,235.72,235.71,14.84875481]
[1758500632468,35.09,235.78,235.71,14.84875481]
[1758500632671,38.42882459,235.77,235.71,4.24250137]
[1758500632983,4.12882459,235.76,235.71,4.24250137]
[1758500633170,2.01263627,235.75,235.71,4.24250137]
[1758500633367,37.08618832,235.74,235.69,4.2427094]
[1758500633668,4.79882459,235.73,235.69,4.2427094]
[1758500633990,4.12882459,235.72,235.69,4.2427094]
[1758500634162,2.78618832,235.72,235.69,4.2427094]
[1758500634364,2.78618832,235.71,235.66,14.85190528]
[1758500634659,34.3,235.7,235.66,15.56190528]
[1758500634864,2.78618832,235.69,235.66,15.56190528]
[1758500635083,2.78618832,235.69,235.67,0.71]
[1758500635609,34.3,235.7,235.66,14.85190528]
[1758500635610,34.3,235.7,235.68,4.95304141]
[1758500635767,34.3,235.7,235.69,0.71]
[1758500635969,37.09057872,235.7,235.69,0.71]
[1758500636285,37.09057872,235.7,235.68,4.24304141]
[1758500636469,34.3,235.7,235.68,4.24304141]
[1758500636673,34.26,235.69,235.68,4.24304141]
[1758500636895,37.0523025,235.69,235.68,4.24304141]
[1758500637211,38.39727638,235.69,235.63,10.60963534]
[1758500637501,4.13727638,235.68,235.63,14.85357711]
[1758500637805,4.13727638,235.67,235.63,14.85357711]
[1758500638004,4.13727638,235.66,235.63,4.24394177]
[1758500638196,38.37727638,235.65,235.63,4.24394177]
[1758500638400,2.7923025,235.64,235.63,4.24394177]
[1758500639323,4.13931381,235.64,235.63,4.24394177]
[1758500639608,39.0591511,235.64,235.6,4.24448217]
[1758500639788,4.83904535,235.63,235.54,13.59559401]
[1758500640113,4.13904535,235.62,235.54,13.59559401]
[1758500640409,4.13904535,235.61,235.54,13.59559401]
[1758500640620,37.0123025,235.6,235.54,13.59559401]
[1758500640797,2.7923025,235.59,235.54,13.59559401]
[1758500640990,2.7923025,235.58,235.55,0.72]
[1758500641306,34.2,235.57,235.55,0.72]
[1758500641507,34.2,235.57,235.56,4.24520292]
[1758500641806,36.98009355,235.57,235.56,4.24520292]
[1758500643138,36.98009355,235.57,235.56,4.96520292]
[1758500643302,2.80009355,235.57,235.56,4.96520292]
[1758500643615,36.98009355,235.57,235.56,4.96520292]
[1758500644520,36.96009355,235.57,235.56,4.96520292]
[1758500645311,38.3136464,235.57,235.56,4.24520292]
[1758500645511,38.2936464,235.57,235.56,4.24520292]
[1758500645903,38.2936464,235.57,235.56,4.96520292]
[1758500646097,37.7936464,235.57,235.56,4.96520292]
[1758500646409,36.44009355,235.57,235.56,4.96520292]
[1758500647110,34.14,235.57,235.56,4.96520292]
[1758500648016,34.14,235.57,235.54,0.72]
[1758500648314,34.14,235.57,235.55,0.72]
[1758500648515,34.14,235.57,235.56,0.72]
[1758500648918,132.2,235.73,235.57,13.59559401]
[1758500649216,1.35512945,235.72,235.62,31.2]
[1758500649397,1.35512945,235.71,235.63,0.71]
[1758500649601,1.35649113,235.7,235.63,0.71]
[1758500649811,34.12,235.72,235.63,0.71]
[1758500650003,2.06649209,235.71,235.61,14.85505708]
[1758500650318,1.35649209,235.7,235.62,0.71]
[1758500650616,34.14,235.69,235.62,0.71]
[1758500650785,1.35649209,235.68,235.62,0.71]
[1758500651291,34.14,235.67,235.62,0.71]
[1758500651508,34.12,235.67,235.62,0.71]
[1758500651697,34.14,235.67,235.62,0.71]
[1758500652104,34.14,235.67,235.63,14.8537962]
[1758500652307,34.14,235.67,235.64,0.71]
[1758500652823,34.14,235.67,235.65,0.71]
[1758500652998,34.14,235.67,235.66,0.71]
[1758500653924,34.1,235.7,235.66,0.71]
[1758500654093,34.1,235.7,235.67,0.71]
[1758500654419,34.1,235.7,235.68,4.24304141]
[1758500654807,34.08,235.69,235.68,4.24304141]
[1758500655011,34.08,235.69,235.68,14.85064494]
[1758500655392,34.08,235.69,235.68,4.24304141]
[1758500655823,4.24182393,235.75,235.68,4.24304141]
[1758500656129,0.71,235.69,235.62,4.24412189]
[1758500656297,34.08,235.68,235.61,10.61053334]
[1758500656623,34.08,235.68,235.61,11.32053334]
[1758500657629,34.08,235.67,235.61,11.32053334]
[1758500657799,0.71,235.69,235.61,11.32053334]
[1758500658131,34.06,235.66,235.61,11.32053334]
[1758500658304,0.71,235.65,235.59,4.24449241]
[1758500658505,34.06,235.66,235.59,4.24449241]
[1758500658715,0.71,235.65,235.59,4.24449241]
[1758500659325,2.0672224,235.64,235.55,4.24538314]
[1758500659624,2.0672224,235.63,235.55,4.24538314]
[1758500659824,0.71,235.62,235.55,4.24538314]
[1758500660004,2.81714656,235.63,235.55,4.24538314]
[1758500660005,34.77,235.61,235.55,4.24538314]
[1758500660397,34.77,235.61,235.51,0.71]
[1758500660398,39.01442801,235.61,235.52,14.86073369]
[1758500660615,0.71,235.6,235.52,14.86073369]
[1758500661426,136.14219235,235.59,235.43,21.23734494]
[1758500661597,136.14219235,235.59,235.44,0.71]
[1758500661598,3.52742331,235.58,235.44,0.71]
[1758500662029,6.75961566,235.58,235.44,0.71]
[1758500662410,4.24502271,235.57,235.46,10.61733511]
[1758500662732,170.20219235,235.56,235.45,4.24718623]
[1758500663026,3.23219235,235.54,235.42,4.24772746]
[1758500663209,31.2,235.51,235.42,4.24772746]
[1758500663410,34.77,235.5,235.42,4.24772746]
[1758500663621,34.77,235.5,235.38,0.71]
[1758500663800,34.06,235.49,235.37,10.62144124]
[1758500664002,34.06,235.48,235.36,0.71]
[1758500664220,37.29219235,235.48,235.36,0.71]
[1758500664402,4.95682549,235.47,235.37,4.24862981]
[1758500664727,34.77,235.46,235.37,4.24862981]
[1758500664908,0.71,235.45,235.37,4.24862981]
[1758500665311,34.06,235.44,235.36,4.24871317]
[1758500665520,0.71,235.43,235.34,2.21974339]
[1758500665721,0.71,235.42,235.34,2.21974339]
[1758500665928,0.71,235.41,235.32,0.71]
[1758500666519,0.71,235.41,235.32,4.95948566]
[1758500666725,4.95793048,235.41,235.32,4.95948566]
[1758500667023,4.95793048,235.41,235.32,0.71]
[1758500667222,0.66,235.4,235.29,0.72]
[1758500667428,31.2,235.37,235.26,0.72]
[1758500667640,34.7,235.36,235.26,0.72]
[1758500668237,4.7264984,235.35,235.22,6.47226116]
[1758500668425,34.7,235.34,235.23,0.72]
[1758500668611,34.7,235.34,235.24,4.25097772]
[1758500668804,34.04,235.33,235.24,4.25097772]
[1758500669006,34.06,235.32,235.25,0.72]
[1758500670610,34.06,235.32,235.25,4.97067555]
[1758500671708,0.66,235.31,235.25,4.25067555]
[1758500672224,0.66,235.31,235.23,4.25102313]
[1758500673212,34.0,235.3,235.23,4.25102313]
[1758500674019,34.0,235.29,235.23,4.25102313]
[1758500675112,33.98,235.28,235.23,4.25102313]
[1758500675423,34.64,235.27,235.23,4.25102313]
[1758500675733,33.98,235.26,235.21,4.25135891]
[1758500676236,33.98,235.26,235.22,0.72]
[1758500677019,4.24960633,235.32,235.23,4.25115844]
[1758500677253,132.2,235.33,235.23,4.25115844]
[1758500677425,34.62,235.31,235.23,4.25115844]
[1758500678040,0.66,235.3,235.21,4.97144411]
[1758500678722,0.66,235.3,235.17,0.72]
[1758500678723,166.8,235.29,235.17,0.72]
[1758500678936,166.8,235.29,235.16,50.0]
[1758500678937,31.2,235.25,235.16,50.0]
[1758500679123,171.05105079,235.24,235.16,50.0]
[1758500679316,166.82,235.23,235.16,50.0]
[1758500679517,166.82,235.22,235.16,50.0]
[1758500679720,132.86,235.22,235.16,50.0]
[1758500679957,34.6,235.21,235.16,50.0]
[1758500680122,0.66,235.2,235.16,50.0]
[1758500680318,0.66,235.19,235.16,50.0]
[1758500680724,34.04,235.18,235.16,50.0]
[1758500680924,34.06,235.17,235.16,50.0]
[1758500681322,0.66,235.24,235.16,54.25240535]
[1758500681543,34.08,235.23,235.18,4.73438077]
[1758500681726,34.08,235.22,235.17,4.73438077]
[1758500681927,34.08,235.22,235.16,54.97236236]
[1758500682129,0.66,235.21,235.16,50.0]
[1758500682339,34.08,235.22,235.16,50.0]
[1758500682651,34.74,235.22,235.16,50.0]
[1758500683056,34.08,235.21,235.16,50.0]
[1758500683239,0.66,235.2,235.16,50.0]
[1758500683625,34.72,235.19,235.16,50.0]
[1758500683948,31.2,235.17,235.16,50.0]
[1758500684120,31.86,235.17,235.16,50.0]
[1758500684623,65.96,235.17,235.16,50.0]
[1758500684824,4.73438077,235.2,235.16,50.0]
[1758500684825,31.2,235.18,235.16,50.0]
[1758500685024,34.78,235.17,235.16,50.0]
[1758500685441,65.98,235.17,235.16,50.0]
[1758500686032,31.86,235.17,235.16,50.0]
[1758500686228,65.96,235.17,235.16,50.0]
[1758500686433,70.69438077,235.17,235.16,50.0]
[1758500687134,65.96,235.17,235.16,50.0]
[1758500687540,0.66,235.2,235.16,50.0]
[1758500687743,34.1,235.19,235.16,50.72]
[1758500688046,34.1,235.18,235.16,50.0]
[1758500688238,0.66,235.25,235.17,0.72]
[1758500688440,34.1,235.24,235.17,0.72]
[1758500688753,0.66,235.25,235.17,0.72]
[1758500688948,26.38141028,235.33,235.17,0.72]
[1758500688949,34.12,235.24,235.2,4.73438077]
[1758500689153,34.12,235.23,235.21,0.72]
[1758500689352,34.12,235.23,235.18,0.72]
[1758500689559,34.78,235.23,235.16,50.0]
[1758500689730,5.39438077,235.22,235.16,50.0]
[1758500689932,34.12,235.21,235.16,50.0]
[1758500690443,0.66,235.26,235.17,0.72]
[1758500690648,3.41107708,235.26,235.18,4.73438077]
[1758500690958,34.14,235.25,235.19,0.72]
[1758500691124,34.14,235.24,235.19,4.97181027]
[1758500691330,34.14,235.23,235.2,0.72]
[1758500691533,0.66,235.33,235.21,5.45438077]
[1758500691823,31.2,235.29,235.22,4.73438077]
[1758500692028,31.2,235.29,235.28,4.73438077]
[1758500692264,65.34,235.29,235.28,4.73438077]
[1758500692448,0.66,235.32,235.28,4.73438077]
[1758500692756,34.12,235.31,235.24,0.72]
[1758500692931,34.12,235.31,235.28,4.73438077]
[1758500693133,34.12,235.3,235.28,4.73438077]
[1758500693334,0.66,235.3,235.28,4.73438077]
[1758500693565,34.12,235.29,235.28,4.73438077]
[1758500694133,31.86,235.33,235.28,4.73438077]
[1758500694334,34.76,235.32,235.29,4.73438077]
[1758500694535,132.2,235.32,235.31,4.73438077]
[1758500694756,0.66,235.38,235.31,4.73438077]
[1758500694936,34.1,235.37,235.33,4.73438077]
[1758500695142,13.59559401,235.41,235.35,4.73438077]
[1758500695143,34.1,235.36,235.35,4.73438077]
[1758500695371,4.90792642,235.41,235.35,4.73438077]
[1758500695372,0.66,235.41,235.35,4.73438077]
[1758500695657,34.1,235.4,235.38,4.73438077]
[1758500695852,31.2,235.38,235.37,4.73438077]
[1758500696766,31.2,235.39,235.33,0.72]
[1758500697057,31.2,235.39,235.37,4.73438077]
[1758500697666,31.2,235.39,235.36,4.73438077]
[1758500698038,31.2,235.39,235.38,4.73438077]
[1758500698258,65.26,235.39,235.38,4.73438077]
[1758500698454,34.06,235.39,235.38,4.73438077]
[1758500698656,34.48,235.42,235.33,4.24934269]
[1758500698874,34.48,235.42,235.41,4.73438077]
[1758500699164,68.54,235.42,235.41,4.73438077]
[1758500699733,68.54,235.42,235.38,0.72]
[1758500700037,2.03192202,235.41,235.33,0.72]
[1758500700349,2.03192202,235.41,235.31,4.73438077]
[1758500700350,31.2,235.37,235.31,4.73438077]
[1758500700546,34.06,235.36,235.29,0.72]
[1758500700873,1.33231679,235.35,235.29,4.73438077]
[1758500701359,35.39354641,235.34,235.31,4.73438077]
[1758500701662,2.03367831,235.33,235.24,0.72]
[1758500701853,133.53367831,235.32,235.25,4.73438077]
[1758500702057,133.53367831,235.32,235.24,0.72]
[1758500702058,1.33367831,235.31,235.29,4.73438077]
[1758500702241,34.1,235.3,235.29,5.45438077]
[1758500702861,34.12,235.31,235.29,5.45438077]
[1758500703059,34.48,235.42,235.3,0.72]
[1758500703356,0.7,235.47,235.41,4.73438077]
[1758500703530,38.26058409,235.46,235.39,0.72]
[1758500703733,4.12058409,235.45,235.39,0.72]
[1758500703944,4.82058409,235.44,235.43,4.73438077]
[1758500704156,4.12058409,235.44,235.43,4.73438077]
[1758500704663,38.26058409,235.44,235.43,4.73438077]
[1758500704835,4.12058409,235.44,235.43,5.45438077]
[1758500705030,38.26058409,235.44,235.43,4.73438077]
[1758500705234,38.26058409,235.44,235.4,0.72]
[1758500705435,4.12058409,235.43,235.41,0.72]
[1758500705662,4.12058409,235.42,235.36,19.60521693]
[1758500705839,2.78215516,235.43,235.36,19.60521693]
[1758500706040,2.78215516,235.42,235.37,0.72]
[1758500706252,2.78215516,235.43,235.37,0.72]
[1758500706462,4.12530882,235.42,235.37,0.72]
[1758500706760,0.7,235.49,235.41,4.73438077]
[1758500707059,38.23411474,235.48,235.46,4.73438077]
[1758500707354,4.83411474,235.47,235.35,0.72]
[1758500707560,4.83411474,235.47,235.39,4.73438077]
[1758500707561,4.13411474,235.46,235.39,4.73438077]
[1758500707734,4.13411474,235.45,235.41,4.73438077]
[1758500707935,38.93411474,235.44,235.41,4.73438077]
[1758500708175,4.13411474,235.43,235.41,4.73438077]
[1758500708357,4.13411474,235.42,235.35,0.72]
[1758500708555,4.13411474,235.41,235.36,4.73438077]
[1758500708735,4.13411474,235.4,235.37,14.31559401]
[1758500708944,8.38,235.43,235.39,13.59559401]
[1758500709247,8.38,235.42,235.4,0.72]
[1758500709447,34.1,235.43,235.4,0.72]
[1758500709650,34.1,235.43,235.42,4.73438077]
[1758500709961,34.1,235.43,235.42,5.45438077]
[1758500710175,0.7,235.52,235.42,5.45438077]
[1758500710342,2.79379391,235.51,235.43,0.72]
[1758500710542,36.89379391,235.5,235.43,0.72]
[1758500710755,2.79379391,235.49,235.43,0.72]
[1758500711443,2.79379391,235.49,235.48,4.73438077]
[1758500711740,2.79379391,235.54,235.48,9.65102592]
[1758500711955,2.79379391,235.57,235.53,4.73438077]
[1758500712164,2.79379391,235.58,235.57,4.73438077]
[1758500712354,37.60379391,235.58,235.57,4.73438077]
[1758500712858,36.89379391,235.58,235.52,5.40438077]
[1758500713043,34.1,235.58,235.57,4.73438077]
[1758500713239,2.79313682,235.58,235.57,4.73438077]
[1758500713437,34.08,235.59,235.57,5.40438077]
[1758500713664,34.08,235.59,235.58,0.67]
[1758500714245,34.1,235.59,235.58,0.67]
[1758500714671,34.1,235.59,235.57,4.73438077]
[1758500715173,34.1,235.59,235.55,0.67]
[1758500715464,34.1,235.59,235.58,4.73438077]
[1758500715876,34.81,235.59,235.51,0.67]
[1758500716052,34.81,235.59,235.55,4.73438077]
[1758500716250,34.81,235.59,235.57,4.73438077]
[1758500716656,34.1,235.59,235.57,4.73438077]
[1758500717449,31.91,235.68,235.58,0.67]
[1758500717655,34.06,235.66,235.65,4.73438077]
[1758500717877,34.77,235.66,235.65,4.73438077]
[1758500718253,34.77,235.66,235.58,0.67]
[1758500718461,34.77,235.66,235.61,4.73438077]
[1758500718653,0.71,235.65,235.61,4.73438077]
[1758500718847,0.71,235.65,235.55,0.67]
[1758500718848,0.71,235.64,235.59,4.73438077]
[1758500719048,0.71,235.63,235.58,4.73438077]
[1758500719250,0.71,235.62,235.58,4.73438077]
[1758500719464,34.04,235.61,235.58,4.73438077]
[1758500719676,34.04,235.61,235.6,4.73438077]
[1758500720179,34.75,235.61,235.58,4.73438077]
[1758500720769,31.2,235.64,235.49,13.59559401]
[1758500720770,0.71,235.6,235.49,13.59559401]
[1758500720967,34.75,235.59,235.49,14.26559401]
[1758500721169,0.71,235.58,235.49,14.26559401]
[1758500721372,0.71,235.58,235.53,4.73438077]
[1758500721567,0.71,235.58,235.49,0.67]
[1758500721753,4.95493726,235.58,235.53,4.73438077]
[1758500721955,31.2,235.56,235.42,0.67]
[1758500722173,5.44438077,235.55,235.45,4.73438077]
[1758500722489,34.73,235.54,235.45,4.73438077]
[1758500722679,0.71,235.53,235.42,0.67]
[1758500722985,0.71,235.53,235.47,4.73438077]
[1758500723368,0.71,235.57,235.49,4.73438077]
[1758500723552,3.4502683,235.75,235.41,14.8675627]
[1758500723553,0.71,235.6,235.53,4.73438077]
[1758500723757,34.02,235.59,235.5,4.91624428]
[1758500723980,38.26468372,235.59,235.5,0.67]
[1758500724188,38.26468372,235.59,235.54,4.73438077]
[1758500724377,0.71,235.58,235.54,4.73438077]
[1758500725267,4.24382267,235.64,235.56,4.73438077]
[1758500725475,31.2,235.6,235.58,4.73438077]
[1758500725658,34.0,235.59,235.58,4.73438077]
[1758500725861,0.71,235.64,235.58,4.73438077]
[1758500726164,34.0,235.63,235.6,4.73438077]
[1758500726589,0.71,235.62,235.59,3.23243936]
[1758500726754,0.72,235.61,235.52,0.67]
[1758500726958,0.72,235.61,235.54,3.23243936]
[1758500727165,31.2,235.6,235.54,3.23243936]
[1758500727377,0.72,235.59,235.52,3.23243936]
[1758500727581,34.02,235.58,235.51,4.90606523]
[1758500727894,0.72,235.57,235.51,3.23243936]
[1758500728275,0.72,235.57,235.49,3.23243936]
[1758500728475,34.02,235.58,235.49,3.23243936]
[1758500728476,0.72,235.56,235.49,3.23243936]
[1758500728785,34.02,235.58,235.53,3.23243936]
[1758500729179,34.02,235.58,235.54,0.66]
[1758500729387,34.0,235.57,235.54,3.89243936]
[1758500729584,34.0,235.57,235.55,3.23243936]
[1758500729792,0.72,235.64,235.56,0.66]
[1758500729970,34.0,235.63,235.58,3.23243936]
[1758500730391,34.0,235.63,235.58,3.89243936]
[1758500730894,34.0,235.63,235.59,3.23243936]
[1758500731673,34.0,235.63,235.51,13.59559401]
[1758500731674,0.72,235.62,235.53,0.66]
[1758500731896,0.72,235.62,235.57,3.23243936]
[1758500732275,34.0,235.63,235.53,4.90561867]
[1758500732276,0.72,235.61,235.53,0.66]
[1758500732466,31.2,235.6,235.5,0.66]
[1758500732673,31.2,235.6,235.54,3.23243936]
[1758500734100,31.2,235.6,235.57,3.23243936]
[1758500734284,4.96415346,235.62,235.57,3.23243936]
[1758500734485,34.02,235.59,235.57,3.23243936]
[1758500734682,34.02,235.59,235.55,3.23243936]
[1758500734884,0.72,235.58,235.55,3.23243936]
[1758500735207,4.96394413,235.63,235.57,3.23243936]
[1758500735385,34.7,235.62,235.57,3.23243936]
[1758500735699,7.03637698,235.63,235.57,3.23243936]
[1758500735700,0.72,235.61,235.57,3.23243936]
[1758500735881,33.98,235.61,235.57,3.23243936]
[1758500736084,0.72,235.6,235.57,3.23243936]
[1758500736678,33.98,235.61,235.57,3.23243936]
[1758500736875,33.98,235.6,235.57,3.89243936]
[1758500737401,33.98,235.6,235.59,3.23243936]
[1758500738231,132.2,235.65,235.59,3.23243936]
[1758500738503,36.77794262,235.64,235.59,3.23243936]
[1758500738668,2.79794262,235.63,235.59,3.23243936]
[1758500738874,0.72,235.62,235.59,3.23243936]
[1758500739799,2.79794262,235.63,235.59,3.23243936]
[1758500739996,2.79794262,235.63,235.59,3.89243936]
[1758500740805,0.72,235.62,235.54,3.23243936]
[1758500741174,0.72,235.62,235.56,3.23243936]
[1758500742017,7.04189238,235.63,235.54,0.66]
[1758500742018,31.2,235.6,235.54,3.23243936]
[1758500742218,31.2,235.6,235.54,3.89243936]
[1758500742509,36.72101492,235.59,235.55,3.23243936]
[1758500742710,33.92,235.59,235.57,3.23243936]
[1758500742908,163.4,235.65,235.58,0.66]
[1758500743098,36.72133546,235.64,235.6,3.23243936]